bitfinex/quotes_ETHUSD_20250404
["timestamp","ask_amount","ask_price","bid_price","bid_amount"]
[1743739526261,0.7535,1791.8,1791.5,5.58175]
[1743739526469,5.417,1791.7,1791.5,5.58175]
[1743739526677,5.417,1791.7,1791.6,0.1171533]
[1743739526990,10.99829,1791.7,1791.4,5.58211]
[1743739527279,6.592149,1791.7,1791.5,0.11759758]
[1743739527479,6.592149,1791.7,1791.5,5.69949758]
[1743739527685,6.592149,1791.7,1791.6,5.5816]
[1743739528053,6.592149,1791.7,1791.6,0.1171533]
[1743739529372,6.592149,1791.7,1791.5,5.58187]
[1743739529575,6.592149,1791.7,1791.6,0.1171533]
[1743739529755,12.173439,1791.7,1791.6,0.1171533]
[1743739529955,12.173439,1791.7,1791.4,5.58208]
[1743739530166,6.592149,1791.7,1791.5,5.69942758]
[1743739530565,6.592149,1791.7,1791.5,5.69933758]
[1743739531098,5.417,1791.7,1791.5,11.28108758]
[1743739531281,3.0,1791.7,1791.6,5.5816]
[1743739531454,8.42,1791.7,1791.6,6.4123]
[1743739531882,5.42,1791.7,1791.6,6.5294533]
[1743739532066,5.42,1791.7,1791.6,8.05883984]
[1743739532284,1.25e-06,1792.0,1791.9,5.58066]
[1743739532457,5.424,1791.9,1791.8,11.16196]
[1743739532769,8.427,1792.1,1792.0,5.58024]
[1743739532975,8.426,1792.1,1791.9,5.58051]
[1743739533397,8.426,1792.1,1792.0,5.58035]
[1743739533601,8.426,1792.1,1792.0,5.96154555]
[1743739534188,8.426,1792.1,1792.0,0.38119555]
[1743739534393,9.31035769,1792.1,1791.9,5.58064]
[1743739534695,9.31035769,1792.1,1792.0,0.38119555]
[1743739535300,8.426,1792.1,1792.0,5.96154555]
[1743739535474,8.426,1792.1,1792.0,0.38119555]
[1743739535793,8.426,1792.1,1791.9,5.58054]
[1743739535992,8.426,1792.1,1792.0,0.38119555]
[1743739536571,8.426,1792.1,1791.9,5.5806]
[1743739536906,16.24079269,1792.1,1792.0,0.38119555]
[1743739537212,21.82106269,1792.1,1791.7,5.58122]
[1743739537524,21.82106269,1792.1,1791.8,0.38211306]
[1743739537688,5.58045,1792.0,1791.8,0.38211306]
[1743739538074,9.13066,1791.9,1791.8,0.38211306]
[1743739538270,12.21497297,1791.9,1791.8,0.38211306]
[1743739538517,5.58118,1791.8,1791.4,5.58211]
[1743739538699,3.0,1791.6,1791.5,5.58178]
[1743739539006,3.0,1791.6,1791.5,5.96476977]
[1743739539394,3.0,1791.6,1791.5,5.58178]
[1743739540006,3.0,1791.6,1791.5,5.58191]
[1743739540706,3.41129977,1791.6,1791.5,5.58191]
[1743739540872,3.0,1791.6,1791.5,5.96489977]
[1743739541076,3.0,1791.6,1791.5,6.78849977]
[1743739541487,3.0,1791.6,1791.5,5.96489977]
[1743739543404,5.425,1791.7,1791.6,5.5816]
[1743739543577,5.425,1791.7,1791.6,5.96428875]
[1743739544188,5.425,1791.7,1791.6,6.78788875]
[1743739549513,5.425,1791.7,1791.6,5.96428875]
[1743739549722,10.3236,1791.7,1791.6,5.96428875]
[1743739550320,5.425,1791.7,1791.6,5.96428875]
[1743739550518,43.561,1791.8,1791.7,5.58129]
[1743739550725,48.98,1791.8,1791.7,5.58129]
[1743739550912,48.98,1791.8,1791.7,5.96370404]
[1743739553596,5.419,1791.8,1791.7,5.96370404]
[1743739553797,43.56700125,1792.0,1791.9,5.58066]
[1743739554014,48.989,1792.0,1791.9,5.96215643]
[1743739554827,49.40261972,1792.0,1791.9,5.96215643]
[1743739561923,49.40261972,1792.0,1791.9,0.38149643]
[1743739562241,49.40261972,1792.0,1791.8,11.16173]
[1743739562442,53.39430588,1792.0,1791.9,0.38075963]
[1743739562644,53.39430588,1792.0,1791.8,5.58086]
[1743739562952,55.97674272,1792.0,1791.9,0.38075963]
[1743739563246,55.97674272,1792.0,1791.8,5.58092]
[1743739563446,55.97674272,1792.0,1791.9,0.38065439]
[1743739564046,55.97674272,1792.0,1791.8,5.58092]
[1743739564246,55.97674272,1792.0,1791.9,0.38065439]
[1743739564447,55.97674272,1792.0,1791.8,5.58087]
[1743739564614,55.97674272,1792.0,1791.9,0.38065439]
[1743739564816,55.97674272,1792.0,1791.8,5.58087]
[1743739565016,55.97674272,1792.0,1791.9,0.38065439]
[1743739565343,55.97674272,1792.0,1791.8,5.58087]
[1743739565648,55.97674272,1792.0,1791.9,0.38065439]
[1743739566144,55.97674272,1792.0,1791.8,5.58087]
[1743739566445,55.97674272,1792.0,1791.9,0.38065439]
[1743739566643,55.97674272,1792.0,1791.8,5.58097]
[1743739566818,55.97674272,1792.0,1791.9,0.38065439]
[1743739567018,55.97674272,1792.0,1791.8,5.58097]
[1743739567354,55.97674272,1792.0,1791.9,0.38065439]
[1743739567648,55.97674272,1792.0,1791.7,5.5812]
[1743739567843,5.59767427,1791.9,1791.7,5.5812]
[1743739568221,8.41805656,1792.0,1791.8,5.58086]
[1743739568421,8.41805656,1792.0,1791.8,5.58085]
[1743739568632,8.41805656,1792.0,1791.8,11.16173]
[1743739568827,8.41805656,1792.0,1791.8,5.58085]
[1743739569669,0.7953,1791.9,1791.3,0.8163]
[1743739569867,8.16390684,1791.7,1791.3,5.58234]
[1743739570174,6.2123,1791.6,1791.4,5.58212]
[1743739570332,11.79391,1791.6,1791.3,11.16474]
[1743739570663,6.2123,1791.6,1791.3,11.16474]
[1743739570952,6.2123,1791.6,1791.4,5.58207]
[1743739571753,6.2123,1791.6,1791.5,0.35025017]
[1743739571925,13.23150768,1791.6,1791.5,0.35025017]
[1743739572124,13.23150768,1791.6,1791.3,5.58242]
[1743739572326,13.23150768,1791.6,1791.5,0.35025017]
[1743739572525,13.23150768,1791.6,1791.4,0.35070915]
[1743739572744,13.23150768,1791.6,1791.3,5.58242]
[1743739572949,13.23150768,1791.6,1791.5,0.35025017]
[1743739573256,13.23150768,1791.6,1791.3,5.58242]
[1743739573428,13.23150768,1791.6,1791.2,5.58279]
[1743739573429,5.58198,1791.5,1791.2,5.58279]
[1743739573635,5.58198,1791.5,1791.3,0.35116819]
[1743739573837,13.23151768,1791.6,1791.3,0.35116819]
[1743739574035,7.64990768,1791.6,1791.3,5.93357819]
[1743739574353,7.64990768,1791.6,1791.3,11.51598819]
[1743739574569,13.23171768,1791.6,1791.3,11.51599819]
[1743739574747,7.64990768,1791.6,1791.3,11.51599819]
[1743739576160,13.23156768,1791.6,1791.3,5.93357819]
[1743739576457,13.23156768,1791.6,1791.3,11.16485]
[1743739576832,13.23156768,1791.6,1791.4,0.35070915]
[1743739577331,7.64990768,1791.6,1791.4,0.35070915]
[1743739577531,7.64990768,1791.6,1791.4,5.93287915]
[1743739578646,13.23159768,1791.6,1791.4,0.35070915]
[1743739578970,1.32315977,1791.5,1791.3,5.58249]
[1743739579154,11.79399,1791.6,1791.3,5.58249]
[1743739579335,6.2123,1791.6,1791.4,0.35070915]
[1743739579661,6.2123,1791.6,1791.4,5.93289915]
[1743739579866,6.2123,1791.6,1791.4,11.51498915]
[1743739580267,6.2123,1791.6,1791.4,5.93279915]
[1743739580465,7.09177368,1791.6,1791.4,5.93279915]
[1743739580763,7.09177368,1791.6,1791.4,11.51490915]
[1743739580967,5.417,1791.6,1791.4,5.93279915]
[1743739581358,5.417,1791.6,1791.4,11.51491915]
[1743739582762,5.417,1791.6,1791.4,5.93279915]
[1743739583071,5.417,1791.6,1791.4,11.51491915]
[1743739583477,5.417,1791.6,1791.4,5.93279915]
[1743739583648,6.85461168,1791.6,1791.4,5.93279915]
[1743739583843,6.85461168,1791.6,1791.4,0.35070915]
[1743739584039,12.43632168,1791.6,1791.3,5.58245]
[1743739584245,12.43632168,1791.6,1791.4,0.3530094]
[1743739584246,8.16434684,1791.5,1791.4,0.3530094]
[1743739584482,5.58235,1791.4,1791.0,5.58334]
[1743739584661,2.58243684,1791.3,1791.1,5.58314]
[1743739584973,5.405,1791.2,1791.1,5.58314]
[1743739585764,5.82078664,1791.2,1791.1,5.58314]
[1743739586271,5.405,1791.2,1791.1,5.58314]
[1743739586462,5.405,1791.2,1791.1,7.482187]
[1743739586658,1.25e-06,1791.5,1791.4,5.58222]
[1743739586859,49.70303,1791.8,1791.6,5.5816]
[1743739586860,46.15443809,1791.8,1791.6,5.5816]
[1743739587063,5.405,1791.7,1791.6,5.5816]
[1743739587378,5.405,1791.7,1791.5,11.16363]
[1743739587885,0.41532568,1791.7,1791.6,5.5816]
[1743739588047,5.405,1791.7,1791.6,5.5816]
[1743739589380,46.15443809,1791.8,1791.7,5.58129]
[1743739589599,51.55943809,1791.8,1791.7,5.58129]
[1743739590091,56.7926719,1791.8,1791.5,11.16369]
[1743739590385,67.9549419,1791.8,1791.4,5.58221]
[1743739590691,3.35533684,1791.6,1791.4,5.58209]
[1743739591189,3.35533684,1791.6,1791.2,11.94789]
[1743739591367,0.33553368,1791.5,1791.3,5.58244]
[1743739591700,5.405,1791.4,1791.2,5.58271]
[1743739592051,7.98743684,1791.4,1791.1,11.16626]
[1743739592275,7.98743684,1791.4,1791.2,11.16553]
[1743739592456,7.98743684,1791.4,1791.3,5.58253]
[1743739592974,8.81973389,1791.4,1791.3,5.58253]
[1743739593786,8.81973389,1791.4,1791.1,5.58292]
[1743739593990,8.81973389,1791.4,1791.2,0.35418909]
[1743739594188,8.81973389,1791.4,1791.1,11.16595]
[1743739594394,0.77290125,1791.3,1791.2,0.35418909]
[1743739594599,4.23731148,1791.3,1791.1,5.58292]
[1743739594762,4.23731148,1791.3,1791.2,0.35418909]
[1743739595093,4.23731148,1791.3,1791.1,5.58292]
[1743739595391,4.23731148,1791.3,1791.2,0.35418909]
[1743739595594,4.23731148,1791.3,1791.1,5.58292]
[1743739595792,4.23731148,1791.3,1791.2,0.35418909]
[1743739595998,4.23731148,1791.3,1791.1,5.58292]
[1743739596170,4.23731148,1791.3,1791.2,0.35418909]
[1743739596375,4.23731148,1791.3,1791.1,11.16596]
[1743739596575,4.23731148,1791.3,1791.2,0.35418909]
[1743739596774,4.23731148,1791.3,1791.1,5.58292]
[1743739596997,4.23731148,1791.3,1791.2,0.35418909]
[1743739597297,4.23731148,1791.3,1791.1,5.58292]
[1743739597498,4.23731148,1791.3,1791.2,0.35418909]
[1743739597899,4.23731148,1791.3,1791.1,5.58292]
[1743739598098,4.23731148,1791.3,1791.2,0.35418909]
[1743739598505,4.23731148,1791.3,1791.1,5.58292]
[1743739598685,4.23731148,1791.3,1791.2,0.35418909]
[1743739598885,4.23731148,1791.3,1791.2,5.93702909]
[1743739599085,4.23731148,1791.3,1791.2,5.58284]
[1743739599304,4.23731148,1791.3,1791.2,5.93702909]
[1743739599473,4.23731148,1791.3,1791.2,0.35418909]
[1743739599883,4.23731148,1791.3,1791.1,11.16594]
[1743739599884,4.23731148,1791.3,1791.1,5.58292]
[1743739600087,4.23731148,1791.3,1791.2,0.35418909]
[1743739600474,3.46441148,1791.3,1791.2,5.58284]
[1743739600669,1.25e-06,1791.3,1791.2,5.58284]
[1743739600921,0.41219889,1791.7,1791.6,0.8289]
[1743739601206,3.39503684,1792.1,1791.8,5.5807]
[1743739601412,5.405,1792.0,1791.9,0.35118579]
[1743739601600,12.42337681,1792.0,1791.6,6.41044]
[1743739601793,3.0,1791.9,1791.7,0.3521034]
[1743739601977,3.0,1791.9,1791.7,5.58129]
[1743739602177,3.0,1791.9,1791.8,0.35164457]
[1743739602378,6.84302681,1792.0,1791.8,0.35164457]
[1743739602800,3.0,1791.9,1791.8,0.35164457]
[1743739603684,3.0,1791.9,1791.7,5.58127]
[1743739603999,3.0,1791.9,1791.8,0.35164457]
[1743739606080,3.41312156,1791.9,1791.8,0.35164457]
[1743739606808,3.41312156,1791.9,1791.8,5.93262457]
[1743739607015,3.41312156,1791.9,1791.8,0.35164457]
[1743739607510,3.41312156,1791.9,1791.8,5.93262457]
[1743739607687,2.58243809,1792.1,1791.9,5.58036]
[1743739607894,1.25e-06,1792.1,1792.0,5.58035]
[1743739608199,5.40500125,1792.1,1792.0,5.93047581]
[1743739609806,5.40500125,1792.1,1792.0,0.35012581]
[1743739610330,17.96248114,1792.1,1792.0,0.35012581]
[1743739610706,17.96248114,1792.1,1791.7,5.58118]
[1743739610707,3.0,1792.0,1791.7,5.58118]
[1743739611117,8.58051,1792.0,1791.6,6.4105]
[1743739611318,2.58243684,1791.9,1791.6,6.4105]
[1743739611835,2.58243684,1791.9,1791.6,11.99198]
[1743739612144,2.58243684,1791.9,1791.6,11.99188]
[1743739612348,2.58243684,1791.9,1791.7,5.58104]
[1743739612633,3.0,1792.0,1791.8,11.1617]
[1743739612802,3.0,1792.0,1791.9,5.58066]
[1743739613008,8.40500125,1792.1,1791.9,6.33566]
[1743739613209,8.40500125,1792.1,1791.9,0.755]
[1743739614244,2.58243684,1792.0,1791.7,5.58124]
[1743739614407,8.97633684,1792.0,1791.6,11.91804]
[1743739614611,3.39583684,1792.0,1791.7,11.1624]
[1743739615036,2.58243684,1792.0,1791.8,5.58092]
[1743739615240,8.40500125,1792.1,1791.9,5.58066]
[1743739616334,8.40500125,1792.1,1792.0,0.34850479]
[1743739617448,13.98504125,1792.1,1792.0,0.34850479]
[1743739617614,13.98504125,1792.1,1791.8,5.58093]
[1743739617814,13.98504125,1792.1,1791.9,0.34896351]
[1743739618016,8.40500125,1792.1,1791.8,11.16186]
[1743739618215,8.40500125,1792.1,1791.9,0.3486761]
[1743739618427,13.98508125,1792.1,1791.8,5.58093]
[1743739618628,13.98508125,1792.1,1791.9,0.3486761]
[1743739618916,13.98508125,1792.1,1791.8,5.58093]
[1743739619140,13.98508125,1792.1,1792.0,0.34821737]
[1743739619344,8.40500125,1792.1,1791.9,0.3486761]
[1743739619542,8.40500125,1792.1,1792.0,0.34821737]
[1743739619953,8.40500125,1792.1,1791.9,5.58063]
[1743739620247,13.98504125,1792.1,1792.0,0.34821737]
[1743739620454,3.0,1791.9,1791.6,11.918]
[1743739620651,3.0,1791.9,1791.7,0.34959371]
[1743739620820,3.0,1791.9,1791.6,6.33655]
[1743739621019,3.0,1791.9,1791.7,0.34948916]
[1743739621219,3.0,1791.9,1791.6,11.91806]
[1743739621429,3.0,1791.9,1791.7,0.34948916]
[1743739621632,3.0,1791.9,1791.6,6.33651]
[1743739621831,3.0,1791.9,1791.7,0.34948916]
[1743739622033,3.0,1791.9,1791.7,5.58126]
[1743739622221,3.0,1791.9,1791.8,0.34903033]
[1743739622844,3.0,1791.9,1791.6,6.33649]
[1743739623157,3.0,1791.9,1791.7,5.93067916]
[1743739623819,3.0,1791.9,1791.7,0.34948916]
[1743739624024,3.0,1791.9,1791.6,6.33649]
[1743739624249,3.0,1791.9,1791.7,0.34948916]
[1743739624450,8.5807,1791.9,1791.6,0.755]
[1743739624619,14.97504,1791.9,1791.7,0.34948916]
[1743739624823,16.73068768,1791.9,1791.5,11.16365]
[1743739625041,16.73068768,1791.9,1791.6,0.34994804]
[1743739625223,11.14984768,1791.9,1791.6,0.34994804]
[1743739625423,11.14984768,1791.9,1791.6,5.93152804]
[1743739625623,14.97495,1791.9,1791.6,0.34994804]
[1743739625851,9.39469,1791.7,1791.6,0.34994804]
[1743739626152,6.3961,1791.3,1790.9,5.58367]
[1743739626358,5.403,1791.2,1790.9,11.1673]
[1743739626518,5.403,1791.2,1791.0,0.32356134]
[1743739627839,5.403,1791.2,1791.0,5.90698134]
[1743739628060,5.403,1791.2,1791.1,6.33816]
[1743739628222,5.40400125,1791.3,1791.2,5.58284]
[1743739628426,5.404,1791.3,1791.2,6.66048301]
[1743739628633,5.404,1791.3,1791.2,6.7163061]
[1743739628839,5.404,1791.3,1791.2,6.71630392]
[1743739629056,5.404,1791.3,1791.2,7.94625031]
[1743739629743,1.25e-06,1791.7,1791.5,5.58188]
[1743739630056,5.404,1791.6,1791.5,5.58188]
[1743739630261,5.404,1791.6,1791.5,6.35318]
[1743739631550,3.00000125,1791.7,1791.5,11.93506]
[1743739631754,5.404,1791.6,1791.5,6.67597896]
[1743739632061,1.25e-06,1791.7,1791.6,5.5816]
[1743739632271,5.40400125,1791.7,1791.6,5.90394003]
[1743739633657,8.82094491,1791.7,1791.6,0.32234003]
[1743739633970,8.82094491,1791.7,1791.5,5.58176]
[1743739634161,8.82094491,1791.7,1791.6,0.32234003]
[1743739634871,5.58202,1791.5,1791.2,0.7914]
[1743739635041,5.58202,1791.5,1790.9,5.58378]
[1743739635042,3.0,1791.2,1790.9,5.58378]
[1743739635373,7.98643684,1791.1,1790.8,11.16805]
[1743739635545,7.98643809,1791.1,1790.8,11.16805]
[1743739635733,7.98643809,1791.1,1790.8,5.58399]
[1743739635935,2.58243684,1790.9,1790.6,0.7914]
[1743739636145,2.58243684,1790.9,1790.6,5.58456]
[1743739636345,3.00707187,1790.9,1790.7,5.58431]
[1743739636731,3.00707187,1790.9,1790.6,5.58456]
[1743739636931,3.00707187,1790.9,1790.4,0.7914]
[1743739637156,3.00707187,1790.9,1790.7,5.58438]
[1743739637569,8.59101187,1790.9,1790.5,5.58477]
[1743739637962,8.59101187,1790.9,1790.4,7.014384]
[1743739637963,3.0,1790.6,1790.2,0.7914]
[1743739638144,3.0,1790.4,1790.0,0.7914]
[1743739638349,9.13596,1790.2,1789.7,0.7914]
[1743739638578,0.55,1790.0,1789.5,5.58806]
[1743739638875,0.55,1790.0,1789.4,6.37961]
[1743739638876,8.58759,1789.7,1789.4,0.7914]
[1743739639281,2.58243684,1789.6,1789.1,5.63925]
[1743739639598,5.431,1789.5,1789.1,5.63925]
[1743739639890,3.0,1789.4,1789.1,5.63925]
[1743739640060,3.0,1789.4,1789.2,5.58893]
[1743739640262,3.0,1789.4,1789.3,5.58877]
[1743739640499,3.0,1789.4,1789.1,11.22861]
[1743739640663,3.0,1789.4,1789.2,5.58901]
[1743739641260,5.431,1789.5,1789.2,5.58901]
[1743739641590,5.5885,1789.4,1789.1,0.05]
[1743739641791,11.17722,1789.4,1789.1,0.05]
[1743739642094,5.5888,1789.3,1789.1,0.05]
[1743739642495,5.58909,1789.2,1789.1,0.05]
[1743739642663,6.13909125,1789.2,1789.1,0.05]
[1743739642868,9.13909125,1789.2,1789.1,0.05]
[1743739643385,6.13909125,1789.2,1789.1,0.05]
[1743739643584,6.13909125,1789.2,1789.1,0.34115795]
[1743739643895,9.13909125,1789.2,1789.1,0.34115795]
[1743739644102,9.13909125,1789.2,1789.1,0.05]
[1743739644488,11.14144331,1789.2,1789.1,0.05]
[1743739644673,15.80192331,1789.2,1789.1,0.05]
[1743739645679,5.58998,1789.0,1788.2,0.7841]
[1743739645887,9.14039,1788.8,1788.4,5.59143]
[1743739646104,5.59068,1788.7,1788.5,0.29464953]
[1743739646398,11.94747,1788.7,1788.3,5.59186]
[1743739646701,5.59102,1788.6,1788.3,5.59187]
[1743739646996,5.442,1788.5,1788.2,6.37612]
[1743739647163,11.45277565,1788.5,1788.1,5.6425]
[1743739647367,11.45277565,1788.5,1788.1,11.23483]
[1743739647587,5.86136565,1788.5,1788.2,5.59219]
[1743739648005,5.442,1788.5,1788.3,5.59173]
[1743739648162,5.452,1788.7,1788.6,5.59082]
[1743739648369,8.452,1788.7,1788.6,5.59082]
[1743739648697,8.452,1788.7,1788.5,5.59122]
[1743739648895,8.452,1788.7,1788.5,5.59108]
[1743739649198,5.452,1788.7,1788.6,5.59096]
[1743739649497,1.25e-06,1788.9,1788.5,0.559108]
[1743739649734,1.25e-06,1788.9,1788.8,5.59033]
[1743739649735,5.454,1788.9,1788.8,5.59033]
[1743739650537,5.454,1788.9,1788.6,6.37496]
[1743739650689,5.454,1788.9,1788.6,6.3749]
[1743739650892,6.07599,1788.9,1788.6,6.3749]
[1743739651091,5.454,1788.9,1788.8,5.59033]
[1743739651935,1.25e-06,1789.3,1789.2,5.58909]
[1743739652138,5.47000125,1789.3,1789.2,5.58909]
[1743739652588,5.47,1789.3,1789.2,5.58909]
[1743739655416,5.47,1789.3,1789.2,5.88450183]
[1743739657039,5.47,1789.3,1789.2,0.29541183]
[1743739657340,6.017,1789.3,1789.1,5.58927]
[1743739657508,6.017,1789.3,1789.2,0.29444786]
[1743739657703,6.017,1789.3,1789.1,5.58924]
[1743739657909,6.017,1789.3,1789.2,0.29444786]
[1743739658108,6.017,1789.3,1789.2,5.58909]
[1743739658338,6.017,1789.3,1789.2,5.88353786]
[1743739658647,6.017,1789.3,1789.2,0.29444786]
[1743739658794,9.017,1789.3,1789.2,0.29444786]
[1743739658998,9.017,1789.3,1789.1,5.58938]
[1743739659324,9.017,1789.3,1789.2,0.29444786]
[1743739659806,9.017,1789.3,1789.0,5.58957]
[1743739660011,9.017,1789.3,1789.2,0.29444786]
[1743739660208,9.017,1789.3,1789.1,0.29490802]
[1743739660413,9.017,1789.3,1789.2,0.29444786]
[1743739660610,47.01043095,1789.6,1789.5,5.58815]
[1743739660945,3.0,1789.5,1789.3,5.58875]
[1743739661140,3.0,1789.5,1789.3,11.17738]
[1743739661299,3.0,1789.5,1789.3,5.58863]
[1743739661805,3.0,1789.5,1789.4,5.58846]
[1743739662205,3.0,1789.5,1789.4,5.88081509]
[1743739662423,49.46789289,1789.6,1789.4,11.46927509]
[1743739663130,49.46789289,1789.6,1789.4,11.46915509]
[1743739663328,49.46789289,1789.6,1789.4,5.88069509]
[1743739663503,49.46789289,1789.6,1789.4,11.46904509]
[1743739664327,49.46789289,1789.6,1789.4,11.46900509]
[1743739664535,49.46789289,1789.6,1789.4,5.88066509]
[1743739665141,55.07500271,1789.6,1789.4,0.29235509]
[1743739665350,55.07500271,1789.6,1789.4,5.88079509]
[1743739665841,58.07500271,1789.6,1789.5,5.58815]
[1743739666050,58.07500271,1789.6,1789.5,5.87968042]
[1743739666344,49.038,1789.6,1789.5,5.87968042]
[1743739667652,5.448,1789.6,1789.5,5.87968042]
[1743739670529,5.448,1789.6,1789.5,0.29153042]
[1743739671052,5.8672583,1789.6,1789.5,0.29153042]
[1743739672025,5.8672583,1789.6,1789.5,5.87968042]
[1743739674556,5.8672583,1789.6,1789.5,0.29153042]
[1743739674861,11.4550983,1789.6,1789.5,0.29153042]
[1743739675026,5.8672583,1789.6,1789.4,5.58843]
[1743739675222,5.8672583,1789.6,1789.5,0.29064484]
[1743739675858,5.8672583,1789.6,1789.5,5.87879484]
[1743739677479,0.4192583,1789.6,1789.5,5.87879484]
[1743739677758,52.20959,1790.0,1789.9,5.5869]
[1743739677759,5.42500125,1790.0,1789.9,5.5869]
[1743739677940,5.42500125,1790.0,1789.9,6.3383]
[1743739678126,5.42500125,1790.0,1789.9,6.62614183]
[1743739679045,5.425,1790.0,1789.9,6.62614183]
[1743739679248,5.425,1790.0,1789.9,7.34442934]
[1743739680260,5.425,1790.0,1789.9,5.87474183]
[1743739681760,6.1808,1790.0,1789.9,0.28784183]
[1743739682071,6.1808,1790.0,1789.7,5.58751]
[1743739682072,14.76739125,1790.0,1789.7,5.58751]
[1743739682227,2.58901757,1789.9,1789.6,11.17551]
[1743739682427,4.70026843,1789.9,1789.8,0.28733856]
[1743739682759,10.28727843,1789.9,1789.8,0.28733856]
[1743739682966,4.70026843,1789.9,1789.6,11.17538]
[1743739683382,4.70026843,1789.9,1789.7,0.28779842]
[1743739683584,10.28723843,1789.9,1789.7,0.28779842]
[1743739683783,4.70026843,1789.9,1789.7,5.58746]
[1743739684073,4.70026843,1789.9,1789.8,0.28733856]
[1743739684366,4.70026843,1789.9,1789.8,5.87454856]
[1743739684745,9.18080125,1790.0,1789.8,11.46175856]
[1743739684945,9.18080125,1790.0,1789.8,5.87454856]
[1743739686162,9.18080125,1790.0,1789.8,11.46165856]
[1743739686665,9.18080125,1790.0,1789.8,5.87444856]
[1743739687765,9.18080125,1790.0,1789.8,5.87439856]
[1743739687962,9.60198313,1790.0,1789.9,5.5869]
[1743739688168,3.00000125,1790.0,1789.9,5.5869]
[1743739688345,3.00000125,1790.0,1789.9,5.87385665]
[1743739688346,5.411,1790.0,1789.9,5.87385665]
[1743739690637,5.411,1790.0,1789.9,0.28695665]
[1743739690966,5.411,1790.0,1789.8,5.58706]
[1743739691160,5.411,1790.0,1789.9,0.28669634]
[1743739691462,6.76963076,1790.0,1789.7,5.58748]
[1743739691643,3.0,1789.9,1789.7,5.58741]
[1743739692041,3.0,1789.9,1789.8,5.58721]
[1743739692463,3.0,1789.9,1789.8,5.87444424]
[1743739693036,5.411,1790.0,1789.8,5.87444424]
[1743739693037,5.411,1790.0,1789.9,6.4082]
[1743739693352,0.42386085,1790.3,1790.2,5.58596]
[1743739693668,0.42386085,1790.3,1790.0,5.58655]
[1743739693669,8.42287842,1790.3,1790.0,5.58655]
[1743739693965,8.42287842,1790.3,1789.9,1.10807443]
[1743739693966,0.818,1790.2,1790.1,0.28585498]
[1743739694169,1.368,1790.2,1790.1,0.28585498]
[1743739694370,3.0,1790.1,1789.9,5.58676]
[1743739694838,5.58901757,1790.1,1789.9,5.58676]
[1743739695037,5.58901757,1790.1,1790.0,0.28631468]
[1743739695444,5.58901757,1790.1,1789.9,5.58676]
[1743739695671,3.0,1790.1,1789.9,5.58676]
[1743739695989,4.23502148,1790.1,1790.0,0.28605439]
[1743739696472,15.40778273,1790.1,1789.8,5.58711]
[1743739696655,10.37130273,1790.1,1790.0,0.28605439]
[1743739696861,10.37130273,1790.1,1789.9,0.28654017]
[1743739697060,4.78502273,1790.1,1789.9,0.28654017]
[1743739697257,0.47850227,1790.0,1789.8,11.17422]
[1743739697462,5.41,1789.9,1789.8,11.17422]
[1743739701351,1.25e-06,1790.1,1790.0,5.58659]
[1743739701551,8.41000125,1790.1,1790.0,5.58659]
[1743739702486,8.41000125,1790.1,1789.9,11.17352]
[1743739702786,9.33280138,1790.1,1790.0,5.58659]
[1743739702953,3.92280138,1790.1,1790.0,5.58659]
[1743739703155,8.41000125,1790.1,1790.0,5.58659]
[1743739704079,8.41000125,1790.1,1789.9,5.58676]
[1743739706312,8.41000125,1790.1,1790.0,5.58659]
[1743739706604,8.41000125,1790.1,1790.0,5.87264443]
[1743739707979,8.41000125,1790.1,1790.0,0.28605443]
[1743739708372,9.33280138,1790.1,1790.0,0.28605443]
[1743739708679,18.41741024,1790.1,1790.0,0.28605443]
[1743739708881,12.83113024,1790.1,1789.8,5.58706]
[1743739709081,12.83113024,1790.1,1790.0,0.28561189]
[1743739709276,18.41741024,1790.1,1789.9,0.28607165]
[1743739709477,18.41741024,1790.1,1790.0,0.28561189]
[1743739709857,24.00390024,1790.1,1789.8,5.58706]
[1743739710199,18.41741024,1790.1,1789.9,0.28607165]
[1743739710698,18.41741024,1790.1,1789.8,5.58706]
[1743739710998,12.83113024,1790.1,1789.9,5.87292165]
[1743739711193,9.88280138,1790.1,1789.9,5.87292165]
[1743739711487,0.98828014,1790.0,1789.9,0.28607165]
[1743739711893,0.98828014,1790.0,1789.8,5.58719]
[1743739712057,0.98828014,1790.0,1789.9,5.87297165]
[1743739712257,0.98828139,1790.0,1789.9,5.87297165]
[1743739712991,0.98828139,1790.0,1789.9,0.28607165]
[1743739713509,0.98828139,1790.0,1789.7,11.17488]
[1743739713694,0.98828139,1790.0,1789.9,0.28607165]
[1743739713897,0.98828139,1790.0,1789.8,0.28653145]
[1743739714075,6.57487139,1790.0,1789.9,0.28607165]
[1743739714475,6.57487139,1790.0,1789.7,11.17482]
[1743739714678,0.98828139,1790.0,1789.9,0.28635796]
[1743739714895,0.98828139,1790.0,1789.8,5.87402777]
[1743739715078,0.98828139,1790.0,1789.9,0.28635796]
[1743739715398,3.0,1789.8,1789.6,5.58778]
[1743739715691,5.41,1789.7,1789.6,5.58778]
[1743739716095,5.41,1789.7,1789.5,5.58811]
[1743739716318,5.41,1789.7,1789.4,0.802]
[1743739716467,0.7696,1789.6,1789.3,5.58875]
[1743739716669,0.7696,1789.6,1789.0,5.58969]
[1743739716670,14.12505011,1789.5,1789.0,11.98129]
[1743739716984,14.12505011,1789.5,1789.1,5.58915]
[1743739716985,6.13819125,1789.5,1789.1,5.58915]
[1743739717177,11.72650125,1789.5,1789.1,5.58915]
[1743739717377,13.27611138,1789.5,1789.1,5.58915]
[1743739717770,2.58985521,1789.4,1789.1,5.58915]
[1743739717980,5.41,1789.3,1789.1,5.58915]
[1743739718376,5.58909,1789.2,1789.0,0.802]
[1743739718580,3.00215638,1789.2,1788.9,0.7941]
[1743739718898,8.17969521,1789.0,1788.7,0.7941]
[1743739719109,5.41,1788.9,1788.6,5.59077]
[1743739719279,5.59034,1788.8,1788.5,0.7941]
[1743739719483,5.59099,1788.6,1788.3,6.38589]
[1743739719775,2.58985521,1788.4,1788.1,0.05]